bitfinex/quotes_BTCUSD_20251226
["timestamp","ask_amount","ask_price","bid_price","bid_amount"]
[1766753182202,0.071471,88753.0,88748.0,0.01126785]
[1766753182983,0.071471,88753.0,88747.0,0.01126798]
[1766753183375,0.071471,88753.0,88748.0,0.01126785]
[1766753184411,0.071471,88753.0,88749.0,0.01126773]
[1766753184613,0.0243519,88759.0,88755.0,0.01126697]
[1766753184816,0.0112657,88765.0,88755.0,0.01126697]
[1766753184996,0.0112657,88765.0,88756.0,0.01126684]
[1766753185198,0.0834557,88765.0,88756.0,0.01126684]
[1766753185433,0.07219,88764.0,88757.0,0.01126671]
[1766753185746,0.07219,88764.0,88756.0,0.01126684]
[1766753186174,0.07219,88764.0,88757.0,0.01126671]
[1766753187051,0.07219,88764.0,88758.0,0.01126659]
[1766753187259,0.07219,88764.0,88757.0,0.01126671]
[1766753187468,0.07219,88764.0,88756.0,0.01126684]
[1766753187615,0.08345582,88764.0,88755.0,0.01126697]
[1766753187811,0.07219,88764.0,88757.0,0.01126671]
[1766753188474,0.07219,88764.0,88756.0,0.01126684]
[1766753189324,0.07219,88764.0,88755.0,0.01126697]
[1766753189527,0.07219,88764.0,88757.0,0.01126671]
[1766753189726,0.07219,88764.0,88756.0,0.01126684]
[1766753190196,0.01126595,88763.0,88754.0,0.01126709]
[1766753190339,0.1397858,88763.0,88753.0,0.01126722]
[1766753190546,0.08345608,88762.0,88754.0,0.01126709]
[1766753190799,0.08345608,88762.0,88753.0,0.01126722]
[1766753191006,0.08345608,88762.0,88754.0,0.01126709]
[1766753191244,0.07219,88762.0,88754.0,0.01126709]
[1766753191447,0.07219,88762.0,88756.0,0.01126684]
[1766753193348,0.07219,88762.0,88755.0,0.01126697]
[1766753193862,0.07219,88762.0,88756.0,0.01126684]
[1766753194270,0.07219,88762.0,88757.0,0.01126671]
[1766753194667,0.07219,88762.0,88754.0,0.01126709]
[1766753195510,0.0112662,88761.0,88751.0,0.05633696]
[1766753195719,0.0112662,88761.0,88750.0,0.01126709]
[1766753195720,0.00055,88754.0,88750.0,0.01126709]
[1766753195914,0.48598598,88761.0,88751.0,0.01128]
[1766753195915,0.01126671,88757.0,88751.0,0.01128]
[1766753196070,0.01126671,88757.0,88745.0,0.01126824]
[1766753196071,0.07219,88753.0,88747.0,0.01128]
[1766753196499,0.07219,88753.0,88748.0,0.01126785]
[1766753196853,0.07219,88753.0,88750.0,0.0112676]
[1766753197047,0.071641,88753.0,88749.0,0.01126773]
[1766753198310,0.071641,88753.0,88748.0,0.0676067]
[1766753198453,0.071641,88753.0,88749.0,0.01126773]
[1766753198634,0.071641,88753.0,88747.0,0.07888759]
[1766753198849,0.071641,88753.0,88747.0,0.01128]
[1766753199058,0.07219,88749.0,88746.0,0.01128]
[1766753199399,0.07219,88749.0,88745.0,0.01128]
[1766753202840,0.071641,88749.0,88745.0,0.01128]
[1766753203427,0.01126747,88751.0,88745.0,0.01128]
[1766753203629,0.01126735,88752.0,88745.0,0.01128]
[1766753204658,0.01126747,88751.0,88745.0,0.01128]
[1766753205516,0.0112676,88750.0,88745.0,0.01128]
[1766753205977,0.01126773,88749.0,88745.0,0.01128]
[1766753208169,0.06760519,88751.0,88745.0,0.01128]
[1766753208306,0.01126773,88749.0,88745.0,0.01128]
[1766753209264,0.01126785,88748.0,88745.0,0.01128]
[1766753209810,0.05634153,88745.0,88743.0,4.852e-05]
[1766753210060,0.01126811,88746.0,88743.0,4.852e-05]
[1766753214120,0.01128,88747.0,88743.0,4.852e-05]
[1766753214319,0.01128,88747.0,88746.0,0.000549]
[1766753214516,0.01128,88747.0,88743.0,4.852e-05]
[1766753215683,0.02254798,88747.0,88743.0,4.852e-05]
[1766753215887,0.01126811,88746.0,88743.0,4.852e-05]
[1766753217029,0.06760909,88746.0,88743.0,4.852e-05]
[1766753217531,0.02254798,88747.0,88743.0,4.852e-05]
[1766753217532,0.02254798,88747.0,88746.0,0.000549]
[1766753217709,0.02254798,88747.0,88743.0,4.852e-05]
[1766753217915,0.01128,88747.0,88743.0,4.852e-05]
[1766753221070,0.02254798,88747.0,88743.0,4.852e-05]
[1766753221266,0.01128,88747.0,88743.0,4.852e-05]
[1766753221445,0.02254798,88747.0,88743.0,4.852e-05]
[1766753223544,0.01128,88747.0,88743.0,4.852e-05]
[1766753226799,0.425077,88753.0,88747.0,0.000549]
[1766753226959,0.01128,88753.0,88747.0,0.01181698]
[1766753227385,0.01128,88753.0,88746.0,0.01126811]
[1766753228034,0.01126659,88758.0,88747.0,0.01126798]
[1766753228238,0.12223001,88759.0,88753.0,0.000549]
[1766753228447,0.08664,88759.0,88753.0,0.01126722]
[1766753229418,0.01126608,88762.0,88753.0,0.01126722]
[1766753229419,0.01126608,88762.0,88759.0,0.000549]
[1766753229746,0.01126659,88758.0,88752.0,0.01128]
[1766753229900,0.08662646,88759.0,88752.0,0.01128]
[1766753230290,0.07536,88759.0,88752.0,0.01128]
[1766753230491,0.07536,88759.0,88752.0,0.02254735]
[1766753231090,0.074811,88759.0,88753.0,0.01126722]
[1766753231657,0.01126582,88764.0,88755.0,0.01126697]
[1766753231919,0.0243179,88769.0,88761.0,0.0112662]
[1766753232107,0.01126506,88770.0,88761.0,0.0112662]
[1766753232234,0.01126519,88769.0,88761.0,0.0158562]
[1766753232653,0.01126519,88769.0,88761.0,0.00459]
[1766753233003,0.01126532,88768.0,88761.0,0.00459]
[1766753233203,0.01126519,88769.0,88761.0,0.0158562]
[1766753233406,0.01126519,88769.0,88761.0,0.00459]
[1766753234361,0.02254506,88770.0,88762.0,0.01126608]
[1766753234644,0.01126532,88768.0,88761.0,0.00459]
[1766753234764,0.01126544,88767.0,88761.0,0.00459]
[1766753235360,0.01126582,88764.0,88755.0,0.0044]
[1766753235720,0.01126582,88764.0,88752.0,0.07888365]
[1766753235721,0.08044633,88760.0,88752.0,0.01128]
[1766753235875,0.01126671,88757.0,88752.0,0.01128]
[1766753236077,0.01126684,88756.0,88752.0,0.01128]
[1766753236886,0.01126697,88755.0,88752.0,0.01128]
[1766753237091,0.01126697,88755.0,88743.0,4.852e-05]
[1766753237092,0.069729,88752.0,88743.0,4.852e-05]
[1766753237293,0.06918,88752.0,88746.0,0.01128]
[1766753237904,0.01126747,88751.0,88746.0,0.01128]
[1766753238168,0.06918,88751.0,88746.0,0.01128]
[1766753238465,0.05655731,88751.0,88746.0,0.01128]
[1766753238692,0.01126722,88753.0,88746.0,0.01128]
[1766753238874,0.01126735,88752.0,88746.0,0.01128]
[1766753239075,0.01126722,88753.0,88746.0,0.01128]
[1766753240057,0.01126735,88752.0,88746.0,0.01128]
[1766753240377,0.01126722,88753.0,88746.0,0.01128]
[1766753240606,0.01126735,88752.0,88746.0,0.01128]
[1766753242176,0.01126709,88754.0,88746.0,0.01128]
[1766753242810,0.01126697,88755.0,88746.0,0.02254811]
[1766753243136,0.01126709,88754.0,88746.0,0.01128]
[1766753243356,0.01126697,88755.0,88747.0,0.01126798]
[1766753243937,0.01126709,88754.0,88746.0,0.01128]
[1766753244562,0.00731256,88754.0,88746.0,0.01128]
[1766753245768,0.00731256,88754.0,88745.0,0.02254824]
[1766753245993,0.080449,88739.0,88723.0,0.06762572]
[1766753246246,0.08044925,88737.0,88731.0,0.01128]
[1766753246757,0.06918,88737.0,88731.0,0.01128]
[1766753246959,4.044e-05,88739.0,88731.0,0.01128]
[1766753247166,4.044e-05,88739.0,88732.0,0.01126989]
[1766753247418,4.044e-05,88739.0,88733.0,0.01126976]
[1766753248179,4.044e-05,88739.0,88734.0,0.01126963]
[1766753248385,4.044e-05,88739.0,88733.0,0.01126976]
[1766753248784,4.044e-05,88739.0,88734.0,0.01126963]
[1766753249380,4.044e-05,88739.0,88733.0,0.01126976]
[1766753249584,0.06918,88738.0,88733.0,0.01126976]
[1766753249823,0.06918,88738.0,88732.0,0.01126989]
[1766753250416,0.06918,88738.0,88731.0,0.07889965]
[1766753250819,0.06918,88738.0,88732.0,0.01126989]
[1766753251264,0.06918,88738.0,88733.0,0.01126976]
[1766753251465,4.044e-05,88739.0,88732.0,0.01126989]
[1766753251777,4.044e-05,88739.0,88733.0,0.01126976]
[1766753252024,4.044e-05,88739.0,88732.0,0.01126989]
[1766753252207,4.044e-05,88739.0,88733.0,0.01126976]
[1766753252432,4.044e-05,88739.0,88731.0,0.07889965]
[1766753253467,4.044e-05,88739.0,88732.0,0.01126989]
[1766753253682,4.044e-05,88739.0,88731.0,0.07889965]
[1766753253879,4.044e-05,88739.0,88732.0,0.01126989]
[1766753255419,4.044e-05,88739.0,88731.0,0.07889965]
[1766753255627,0.01130944,88739.0,88731.0,0.02255001]
[1766753255990,4.044e-05,88739.0,88731.0,0.02255001]
[1766753256686,4.044e-05,88739.0,88731.0,0.01128]
[1766753256922,0.01126912,88738.0,88731.0,0.010731]
[1766753257222,0.01126925,88737.0,88731.0,0.010731]
[1766753257497,0.0563492,88733.0,88731.0,0.010731]
[1766753257699,0.06761823,88734.0,88731.0,0.010731]
[1766753258651,0.01126963,88734.0,88731.0,0.010731]
[1766753258854,0.01126938,88736.0,88731.0,0.010731]
[1766753259278,0.01126951,88735.0,88731.0,0.010731]
[1766753259871,0.01126938,88736.0,88731.0,0.010731]
[1766753261295,0.05634661,88737.0,88731.0,0.010731]
[1766753261797,0.01126951,88735.0,88731.0,0.010731]
[1766753264258,0.01126963,88734.0,88731.0,0.010731]
[1766753265495,0.01126951,88735.0,88731.0,0.010731]
[1766753265919,0.01126951,88735.0,88727.0,0.01127052]
[1766753266435,0.01126951,88735.0,88726.0,0.02255065]
[1766753267009,0.01126963,88734.0,88726.0,0.01128]
[1766753267389,0.01126989,88732.0,88726.0,0.01128]
[1766753267587,0.01126976,88733.0,88726.0,0.01128]
[1766753267773,0.01126951,88735.0,88726.0,0.01128]
[1766753268379,0.01126951,88735.0,88726.0,0.02255065]
[1766753268582,0.01126963,88734.0,88726.0,0.01128]
[1766753268789,0.01126989,88732.0,88726.0,0.01128]
[1766753268989,0.01126976,88733.0,88726.0,0.01128]
[1766753269412,0.01126989,88732.0,88726.0,0.01128]
[1766753270298,0.01127001,88731.0,88726.0,0.01128]
[1766753270540,0.01126989,88732.0,88726.0,0.01128]
[1766753271537,0.01127001,88731.0,88726.0,0.01073]
[1766753271738,0.01127027,88729.0,88726.0,0.01073]
[1766753271937,0.01127001,88731.0,88726.0,0.01073]
[1766753272468,0.0676197,88732.0,88726.0,0.01073]
[1766753272670,0.01127001,88731.0,88726.0,0.01073]
[1766753273059,0.01127014,88730.0,88726.0,0.01073]
[1766753274266,0.01127027,88729.0,88726.0,0.01073]
[1766753274470,0.01127014,88730.0,88726.0,0.01073]
[1766753274679,0.01127014,88730.0,88726.0,0.00983878]
[1766753275287,0.01127014,88730.0,88721.0,0.01127128]
[1766753275588,0.01127014,88730.0,88722.0,0.01127116]
[1766753276999,0.01127014,88730.0,88721.0,0.01127128]
[1766753277543,0.01127014,88730.0,88722.0,0.01127116]
[1766753278416,0.01127014,88730.0,88720.0,0.01128]
[1766753278417,0.01127039,88728.0,88720.0,0.01128]
[1766753278973,0.01127027,88729.0,88720.0,0.02255141]
[1766753280728,0.01127027,88729.0,88721.0,0.01127128]
[1766753280884,0.01127027,88729.0,88720.0,0.02255141]
[1766753281090,0.01127027,88729.0,88721.0,0.01127128]
[1766753282598,0.01127052,88727.0,88720.0,0.01128]
[1766753282800,0.01127065,88726.0,88720.0,0.01128]
[1766753283040,0.14055197,88729.0,88720.0,0.01128]
[1766753283203,0.08420027,88729.0,88720.0,0.02255141]
[1766753284018,0.08365127,88729.0,88721.0,0.01127128]
[1766753284238,0.01127039,88728.0,88720.0,0.01128]
[1766753284475,0.01127065,88726.0,88720.0,0.01128]
[1766753284669,0.08420039,88728.0,88720.0,0.02255141]
[1766753285019,0.07293,88728.0,88721.0,0.01127128]
[1766753285219,0.01127014,88730.0,88721.0,0.01127128]
[1766753285220,0.01127014,88730.0,88722.0,0.01127116]
[1766753285616,0.01127027,88729.0,88720.0,0.02255141]
[1766753285749,0.01127027,88729.0,88721.0,0.01127128]
[1766753286146,0.01127014,88730.0,88721.0,0.01127128]
[1766753286577,0.01127027,88729.0,88721.0,0.01127128]
[1766753286908,0.01126976,88733.0,88721.0,0.06762754]
[1766753287040,0.01128,88735.0,88729.0,0.00055]
[1766753287231,0.01126963,88734.0,88729.0,0.00055]
[1766753287478,0.01126976,88733.0,88725.0,0.03884]
[1766753287701,0.01126976,88733.0,88725.0,0.05011078]
[1766753288090,0.01126963,88734.0,88725.0,0.05011078]
[1766753289624,0.01126976,88733.0,88725.0,0.05011078]
[1766753289767,0.01126976,88733.0,88725.0,0.03884]
[1766753290890,0.01126989,88732.0,88725.0,0.03884]
[1766753291904,0.01126976,88733.0,88725.0,0.03884]
[1766753292108,0.01126989,88732.0,88725.0,0.03884]
[1766753292392,0.01126976,88733.0,88725.0,0.03884]
[1766753292932,0.01126989,88732.0,88725.0,0.03884]
[1766753293285,0.01126976,88733.0,88725.0,0.03884]
[1766753294438,0.01126976,88733.0,88725.0,0.05011078]
[1766753294642,0.01126976,88733.0,88725.0,0.03884]
[1766753295148,0.01126963,88734.0,88725.0,0.05011078]
[1766753295302,0.01126976,88733.0,88725.0,0.03884]
[1766753295508,0.01127001,88731.0,88725.0,0.03884]
[1766753295708,0.01126989,88732.0,88725.0,0.03884]
[1766753296242,0.01126976,88733.0,88725.0,0.03884]
[1766753297368,0.06761843,88734.0,88725.0,0.05011078]
[1766753298262,0.01126976,88733.0,88725.0,0.05011078]
[1766753300766,0.01126989,88732.0,88725.0,0.03884]
[1766753301084,0.01127001,88731.0,88725.0,0.03884]
[1766753302611,0.01127014,88730.0,88721.0,0.01127128]
[1766753302824,0.000549,88725.0,88721.0,0.01127128]
[1766753303203,0.01127014,88730.0,88721.0,0.01127128]
[1766753304510,0.01127027,88729.0,88720.0,0.02255141]
[1766753305514,0.01127039,88728.0,88720.0,0.02255141]
[1766753305955,0.01127027,88729.0,88720.0,0.02255141]
[1766753307629,0.01127039,88728.0,88720.0,0.01128]
[1766753307825,0.01127039,88728.0,88720.0,0.02255141]
[1766753308968,0.08547039,88728.0,88720.0,0.01128]
[1766753309345,0.08547052,88727.0,88720.0,0.01128]
[1766753309713,0.0742,88727.0,88720.0,0.02255141]
[1766753311069,0.0742,88727.0,88720.0,0.01128]
[1766753311707,0.08547052,88727.0,88720.0,0.01128]
[1766753311895,0.01127065,88726.0,88720.0,0.01128]
[1766753312125,0.0742,88725.0,88720.0,0.01128]
[1766753313443,0.000549,88720.0,88717.0,0.01128]
[1766753313641,0.0742,88720.0,88716.0,0.01128]
[1766753314046,0.01127166,88718.0,88714.0,0.01128]
[1766753314232,0.01127166,88718.0,88709.0,0.01128]
[1766753314437,0.01127166,88718.0,88709.0,0.02255281]
[1766753314637,0.14182962,88719.0,88710.0,0.01127268]
[1766753315450,0.01127166,88718.0,88709.0,0.02255281]
[1766753316023,0.01127166,88718.0,88710.0,0.01127268]
[1766753316221,0.14182962,88719.0,88710.0,0.01127268]
[1766753316436,0.01127166,88718.0,88709.0,0.02255281]
[1766753316611,0.01127166,88718.0,88710.0,0.01127268]
[1766753316816,0.0742,88717.0,88709.0,0.02255281]
[1766753317221,0.08547192,88716.0,88709.0,0.01128]
[1766753317422,0.0742,88716.0,88709.0,0.02255281]
[1766753317626,0.02255116,88722.0,88716.0,0.00055]
[1766753317904,0.02255116,88722.0,88713.0,0.0112723]
[1766753318266,0.01128,88722.0,88714.0,0.01127217]
[1766753318893,0.01128,88722.0,88715.0,0.01127205]
[1766753319245,0.02255116,88722.0,88713.0,0.0112723]
[1766753319440,0.02255116,88722.0,88714.0,0.01127217]
[1766753319642,0.02255116,88722.0,88713.0,0.0112723]
[1766753319859,0.01127128,88721.0,88713.0,0.0112723]
[1766753320058,0.02255116,88722.0,88713.0,0.0112723]
[1766753320619,0.01127128,88721.0,88713.0,0.0112723]
[1766753320818,0.02255116,88722.0,88713.0,0.0112723]
[1766753322321,0.02255116,88722.0,88714.0,0.01127217]
[1766753322523,0.01127128,88721.0,88712.0,0.06763425]
[1766753322724,0.01127128,88721.0,88713.0,0.0112723]
[1766753323747,0.01127128,88721.0,88712.0,0.06763425]
[1766753323952,0.01127128,88721.0,88713.0,0.0112723]
[1766753324156,0.01127128,88721.0,88712.0,0.06763425]
[1766753325286,0.01127128,88721.0,88713.0,0.0112723]
[1766753326017,0.01127128,88721.0,88712.0,0.06763425]
[1766753326616,0.01127128,88721.0,88713.0,0.0112723]
[1766753327189,0.01127128,88721.0,88712.0,0.06763425]
[1766753328039,0.08547103,88723.0,88715.0,0.01127205]
[1766753328248,0.03043959,88738.0,88723.0,0.01182103]
[1766753328249,0.07334,88729.0,88723.0,0.01182103]
[1766753328564,0.01128,88727.0,88720.0,0.01127141]
[1766753329780,0.000549,88720.0,88716.0,0.072]
[1766753329929,0.000549,88720.0,88716.0,0.08327192]
[1766753330128,0.0112709,88724.0,88716.0,0.08327192]
[1766753330384,0.01127078,88725.0,88716.0,0.08327192]
[1766753330542,0.0112709,88724.0,88716.0,0.08327192]
[1766753331571,0.01127078,88725.0,88716.0,0.08327192]
[1766753331763,0.0112709,88724.0,88716.0,0.08327192]
[1766753332192,0.0112709,88724.0,88716.0,0.072]
[1766753332339,0.0112709,88724.0,88716.0,0.08327192]
[1766753332539,0.0112709,88724.0,88716.0,0.072]
[1766753333035,0.01127103,88723.0,88716.0,0.072]
[1766753333238,0.01127103,88723.0,88714.0,0.01127217]
[1766753333413,0.01127116,88722.0,88712.0,0.01127243]
[1766753333611,0.01127116,88722.0,88713.0,0.0112723]
[1766753334161,0.05635644,88721.0,88710.0,0.11703907]
[1766753334364,0.07334,88715.0,88710.0,0.01128]
[1766753334692,0.07334,88715.0,88709.0,0.02255281]
[1766753334867,0.07334,88715.0,88710.0,0.01127268]
[1766753335182,0.07334,88715.0,88711.0,0.01127255]
[1766753335708,0.07334,88715.0,88710.0,0.01127268]
[1766753335948,0.07334,88715.0,88709.0,0.02255281]
[1766753336362,0.07334,88715.0,88710.0,0.01127268]
[1766753336564,0.07334,88715.0,88709.0,0.02255281]
[1766753336923,0.07334,88715.0,88710.0,0.01127268]
[1766753338540,0.07334,88715.0,88711.0,0.01127255]
[1766753338746,0.07334,88715.0,88710.0,0.01127268]
[1766753339544,0.07334,88715.0,88711.0,0.01127255]
[1766753340272,0.000549,88711.0,88709.0,0.01128]
[1766753340687,0.07334,88715.0,88709.0,0.02255281]
[1766753341019,0.07334,88715.0,88709.0,0.01128]
[1766753341180,0.07334,88715.0,88709.0,0.02255281]
[1766753341377,0.07334,88715.0,88709.0,0.02266059]
[1766753341998,0.07334,88715.0,88709.0,0.01138778]
[1766753342196,0.07334,88715.0,88709.0,0.02266059]
[1766753342400,0.01182181,88709.0,88691.0,0.07389]
[1766753342639,0.01127332,88705.0,88695.0,0.05637252]
[1766753342828,0.01127408,88699.0,88691.0,0.07389]
[1766753343133,0.01127383,88701.0,88692.0,0.01128]
[1766753343344,0.0112737,88702.0,88693.0,0.01127484]
[1766753343534,0.01127395,88700.0,88692.0,0.01128]
[1766753344127,0.01127383,88701.0,88692.0,0.02255497]
[1766753344330,0.01127395,88700.0,88692.0,0.01128]
[1766753344563,0.01127383,88701.0,88692.0,0.02255497]
[1766753344764,0.0112737,88702.0,88693.0,0.01127484]
[1766753345331,0.01127383,88701.0,88692.0,0.02255497]
[1766753345526,0.0112737,88702.0,88694.0,0.01127471]
[1766753345709,0.0112737,88702.0,88693.0,0.01127484]
[1766753345915,0.0112737,88702.0,88692.0,0.01127497]
[1766753346160,0.01127395,88700.0,88692.0,0.01127497]
[1766753346364,0.01127395,88700.0,88691.0,0.0964451]
[1766753346539,0.05637042,88699.0,88691.0,0.08517]
[1766753346738,0.01127446,88696.0,88691.0,0.08517]
[1766753346935,0.01127433,88697.0,88691.0,0.08517]
[1766753347371,0.01127433,88697.0,88691.0,0.01128]
[1766753347543,0.01127446,88696.0,88691.0,0.01128]
[1766753348136,0.01127459,88695.0,88691.0,0.01128]
[1766753348339,0.01127446,88696.0,88691.0,0.01128]
[1766753348536,0.01127459,88695.0,88691.0,0.01128]
[1766753349566,0.01127446,88696.0,88687.0,0.0112756]
[1766753349790,0.01127459,88695.0,88687.0,0.01136475]
[1766753350098,0.01127446,88696.0,88687.0,0.01136475]
[1766753350503,0.01127459,88695.0,88687.0,0.01136475]
[1766753350708,0.01127446,88696.0,88687.0,8.915e-05]
[1766753351067,0.01127459,88695.0,88687.0,8.915e-05]
[1766753351493,0.01127471,88694.0,88687.0,8.915e-05]
[1766753353284,0.01127459,88695.0,88687.0,0.01136475]
[1766753353504,0.01127471,88694.0,88687.0,8.915e-05]
[1766753353626,0.01127459,88695.0,88687.0,0.01136475]
[1766753353827,0.01127446,88696.0,88687.0,0.01136475]
[1766753354044,0.01127446,88696.0,88688.0,0.01127548]
[1766753354296,0.01127446,88696.0,88687.0,0.01136475]
[1766753354697,0.01127459,88695.0,88687.0,8.915e-05]
[1766753355749,0.01127459,88695.0,88687.0,0.01136475]
[1766753356794,0.01127446,88696.0,88687.0,0.01136475]
[1766753357095,0.01127446,88696.0,88688.0,0.01127548]
[1766753357539,0.01127446,88696.0,88687.0,0.01136475]
[1766753358307,0.01127471,88694.0,88687.0,8.915e-05]
[1766753358518,0.01127484,88693.0,88687.0,8.915e-05]
[1766753359839,0.01127471,88694.0,88687.0,8.915e-05]
[1766753360027,0.01127459,88695.0,88687.0,8.915e-05]
[1766753360230,0.01127471,88694.0,88687.0,8.915e-05]
[1766753360466,0.01127484,88693.0,88687.0,8.915e-05]
[1766753360871,0.01127497,88692.0,88687.0,8.915e-05]
[1766753361294,0.01127484,88693.0,88687.0,8.915e-05]
[1766753362061,0.01127471,88694.0,88687.0,8.915e-05]
[1766753362401,0.01127484,88693.0,88687.0,8.915e-05]
[1766753362804,0.06764936,88693.0,88687.0,8.915e-05]
[1766753362965,0.01127497,88692.0,88687.0,8.915e-05]
[1766753366228,0.01127484,88693.0,88687.0,8.915e-05]
[1766753367278,0.01127497,88692.0,88687.0,8.915e-05]
[1766753368324,0.01127459,88695.0,88687.0,8.915e-05]
[1766753368879,0.01127471,88694.0,88687.0,8.915e-05]
[1766753371059,0.01127484,88693.0,88687.0,8.915e-05]
[1766753371608,0.01127471,88694.0,88687.0,8.915e-05]
[1766753373223,0.01127484,88693.0,88687.0,8.915e-05]
[1766753373425,0.01127471,88694.0,88687.0,8.915e-05]
[1766753374802,0.06764949,88693.0,88687.0,8.915e-05]
[1766753374992,0.01128,88695.0,88687.0,8.915e-05]
[1766753375198,0.01127471,88694.0,88687.0,8.915e-05]
[1766753375354,0.02255459,88695.0,88687.0,8.915e-05]
[1766753375741,0.02225581,88695.0,88687.0,8.915e-05]
[1766753376182,0.01127471,88694.0,88687.0,8.915e-05]
[1766753384841,0.01044555,88694.0,88687.0,8.915e-05]
[1766753385074,0.01127484,88693.0,88687.0,8.915e-05]
[1766753385278,0.01044555,88694.0,88687.0,8.915e-05]
[1766753388252,0.01127471,88694.0,88687.0,8.915e-05]
[1766753388456,0.01127281,88709.0,88700.0,0.01127395]
[1766753388781,0.02255573,88703.0,88701.0,0.01127383]
[1766753388974,0.01127255,88711.0,88701.0,0.01127383]
[1766753389140,0.01127255,88711.0,88703.0,0.01127357]
[1766753389343,0.02255573,88710.0,88703.0,0.01127357]
[1766753389574,0.02255573,88710.0,88702.0,0.0112737]
[1766753389978,0.02255573,88710.0,88701.0,0.01127383]
[1766753390280,0.02255573,88710.0,88703.0,0.01127357]
[1766753390509,0.03382841,88710.0,88701.0,0.06764296]
[1766753390739,0.02255573,88710.0,88702.0,0.0112737]
[1766753391186,0.02255573,88710.0,88703.0,0.05636752]
[1766753391414,0.02255573,88710.0,88703.0,0.01127357]
[1766753391655,0.02255573,88710.0,88704.0,0.01127344]
[1766753392038,0.02255573,88710.0,88703.0,0.01127357]
[1766753392407,0.02255573,88710.0,88703.0,0.01067958]
[1766753392818,0.02255573,88710.0,88704.0,0.01127344]
[1766753392970,0.02255573,88710.0,88703.0,0.01067958]
[1766753393758,0.01490855,88710.0,88705.0,0.01127332]
[1766753393937,0.01128,88719.0,88713.0,0.0112723]
[1766753394104,0.01128,88719.0,88712.0,0.01127243]
[1766753394283,0.01128,88719.0,88713.0,0.0112723]
[1766753394844,0.02255154,88719.0,88711.0,0.01127255]
[1766753395050,0.02255154,88719.0,88710.0,0.01127268]
[1766753395256,0.01128,88719.0,88710.0,0.01127268]
[1766753395461,0.02255154,88719.0,88710.0,0.01127268]
[1766753395666,0.01128,88719.0,88712.0,0.01127243]
[1766753395894,0.01128,88719.0,88715.0,0.01127205]
[1766753396103,0.01128,88719.0,88713.0,0.0112723]
[1766753396104,0.011269,88739.0,88727.0,0.01127052]
[1766753396308,0.0002,88732.0,88729.0,0.01127027]
[1766753396805,0.0002,88732.0,88728.0,0.010181]
[1766753396976,0.0002,88732.0,88728.0,0.02145139]
[1766753397311,0.0002,88732.0,88728.0,0.010181]
[1766753397312,0.0002607,88732.0,88728.0,0.010181]
[1766753400634,0.0002607,88732.0,88728.0,0.02145139]
[1766753400840,0.0002607,88732.0,88728.0,0.010181]
[1766753401041,7e-07,88732.0,88728.0,0.010181]
[1766753402100,0.01127001,88731.0,88728.0,0.009921]
[1766753402469,0.01127059,88732.0,88728.0,0.009921]
[1766753402683,7e-07,88732.0,88704.0,0.07261]
[1766753402852,7e-07,88732.0,88701.0,0.01128]
[1766753402853,0.08353281,88709.0,88701.0,0.01128]
[1766753403071,0.40311812,88720.0,88701.0,0.01128]
[1766753403072,0.01127243,88712.0,88703.0,0.01127357]
[1766753403271,0.01127217,88714.0,88709.0,0.000549]
[1766753403472,0.01127281,88709.0,88701.0,0.02255383]
[1766753403674,0.01127243,88712.0,88701.0,0.01128]
[1766753403875,0.01127268,88710.0,88701.0,0.01128]
[1766753404260,0.01127281,88709.0,88701.0,0.01128]
[1766753404686,0.01127294,88708.0,88701.0,0.01128]
[1766753404885,0.01127319,88706.0,88701.0,0.01128]
[1766753405082,0.01127306,88707.0,88701.0,0.01128]
[1766753405490,0.01127294,88708.0,88701.0,0.01128]
[1766753406241,0.01127306,88707.0,88701.0,0.01128]
[1766753406759,0.01127319,88706.0,88701.0,0.01128]
[1766753408223,0.01127344,88704.0,88700.0,0.01128]
[1766753408473,0.01127357,88703.0,88700.0,0.01128]
[1766753408873,0.01127357,88703.0,88695.0,0.01128]
[1766753408874,0.0112737,88702.0,88695.0,0.01128]
[1766753409449,0.0112737,88702.0,88695.0,0.01134]
[1766753410274,0.01127357,88703.0,88695.0,6e-05]
[1766753412027,0.01127344,88704.0,88695.0,0.01133459]
[1766753412451,0.01127344,88704.0,88696.0,0.01127446]
[1766753413037,0.06763812,88708.0,88696.0,0.06764671]
[1766753413237,0.01127306,88707.0,88704.0,0.000549]
[1766753413449,0.01127294,88708.0,88707.0,0.00055]
[1766753413645,0.01127294,88708.0,88699.0,0.01127408]
[1766753413844,0.01127306,88707.0,88699.0,0.01127408]
[1766753414955,0.01127319,88706.0,88697.0,0.01127433]
[1766753415121,0.01127319,88706.0,88698.0,0.01127421]
[1766753415329,0.01127306,88707.0,88698.0,0.01127421]
[1766753417246,0.01127319,88706.0,88698.0,0.01127421]
[1766753417607,0.01127306,88707.0,88698.0,0.01127421]
[1766753418805,0.01127294,88708.0,88698.0,0.06764509]
[1766753419228,0.01127294,88708.0,88699.0,0.08224408]
[1766753420528,0.01127319,88706.0,88699.0,0.07097]
[1766753420703,0.01127332,88705.0,88699.0,0.07097]
[1766753421124,0.01127332,88705.0,88696.0,0.01127446]
[1766753421327,0.01127395,88700.0,88695.0,6e-05]
[1766753421532,0.01127446,88696.0,88687.0,0.0225556]
[1766753421709,0.01127446,88696.0,88688.0,0.01127548]
[1766753422050,0.07151,88697.0,88690.0,0.01127522]
[1766753422254,0.07151,88697.0,88689.0,0.01127535]
[1766753423631,0.08278433,88697.0,88689.0,0.01127535]
[1766753424036,0.08278433,88697.0,88687.0,8.915e-05]
[1766753424247,0.01127484,88693.0,88687.0,8.915e-05]
[1766753424451,0.01127471,88694.0,88687.0,8.915e-05]
[1766753425089,0.01127459,88695.0,88687.0,8.915e-05]
[1766753425449,0.01127471,88694.0,88687.0,8.915e-05]
[1766753426596,0.08278484,88693.0,88684.0,0.02255599]
[1766753426747,0.07151,88693.0,88685.0,0.01127586]
[1766753426947,0.08278484,88693.0,88685.0,0.01127586]
[1766753427151,0.07151,88693.0,88686.0,0.01127573]
[1766753428172,0.01127433,88697.0,88687.0,0.0112756]
[1766753428703,0.01127446,88696.0,88688.0,0.01127548]
[1766753428855,0.01127446,88696.0,88687.0,0.0112756]
[1766753428856,0.01127459,88695.0,88687.0,0.0112756]
[1766753429263,0.01127446,88696.0,88687.0,0.0112756]
[1766753429460,0.01127459,88695.0,88687.0,0.0112756]
[1766753429692,0.06764797,88695.0,88684.0,0.07893557]
[1766753429857,0.01127471,88694.0,88686.0,0.01127573]
[1766753432471,0.01127471,88694.0,88685.0,0.01127586]
[1766753432652,0.01127459,88695.0,88686.0,0.01127573]
[1766753432850,0.01127459,88695.0,88685.0,0.01127586]
[1766753432851,0.01127471,88694.0,88685.0,0.01127586]
[1766753433062,0.01127471,88694.0,88686.0,0.01127573]
[1766753433359,0.01127471,88694.0,88685.0,0.01127586]
[1766753433788,0.01127484,88693.0,88685.0,0.01127586]